fUSD/lending_fUSD_20240616
["ID","MTS","AMOUNT","RATE_DAILY","PERIOD"]
[329630751,1718517063085,-500.0,0.00021917,2]
[329630752,1718517063101,-605.53,0.00021917,2]
[329630753,1718517063113,-500.0,0.00021917,2]
[329630754,1718517063130,-500.0,0.00021917,2]
[329630755,1718517063145,-500.0,0.00021917,2]
[329630756,1718517063168,-500.0,0.00021917,2]
[329630757,1718517063185,-500.0,0.00021917,2]
[329630758,1718517063210,-500.0,0.00021917,2]
[329630759,1718517063238,-500.0,0.00021917,2]
[329630760,1718517063259,-500.0,0.00021917,2]
[329630761,1718517063275,-500.0,0.00021917,2]
[329630762,1718517063294,-1005.53,0.00021917,2]
[329630763,1718517063308,-500.0,0.00021917,2]
[329630764,1718517063328,-500.0,0.00021917,2]
[329630765,1718517063343,-500.0,0.00021917,2]
[329630766,1718517063373,-500.0,0.00021917,2]
[329630767,1718517063386,-500.0,0.00021917,2]
[329630768,1718517063415,-500.0,0.00021917,2]
[329630769,1718517063429,-944.61,0.00021917,2]
[329630770,1718517063442,-500.0,0.00021917,2]
[329630771,1718517063454,-500.0,0.00021917,2]
[329630772,1718517063467,-580.86317524,0.00021917,2]
[329630773,1718517063485,-1653.11,0.00021917,2]
[329630774,1718517063498,-500.0,0.00021917,2]
[329630775,1718517063511,-500.0,0.00021917,2]
[329630776,1718517063522,-500.0,0.00021917,2]
[329630777,1718517063534,-628.02957672,0.00021917,2]
[329630778,1718517063557,-500.0,0.00021917,2]
[329630779,1718517063571,-500.0,0.00021917,2]
[329630780,1718517063583,-500.0,0.00021917,2]
[329630781,1718517063595,-500.0,0.00021917,2]
[329630782,1718517063609,-500.0,0.00021917,2]
[329630783,1718517063622,-500.0,0.00021917,2]
[329630784,1718517063646,-500.0,0.00021917,2]
[329630785,1718517063660,-500.0,0.00021917,2]
[329630786,1718517063672,-500.0,0.00021917,2]
[329630787,1718517063687,-500.0,0.00021917,2]
[329630788,1718517063700,-597.73764536,0.00021917,2]
[329630789,1718517063715,-6394.42,0.00021917,2]
[329630790,1718517063733,-500.0,0.00021917,2]
[329630791,1718517063748,-585.5822061,0.00021917,2]
[329630792,1718517063760,-1461.86,0.00021917,2]
[329630793,1718517063773,-500.0,0.00021917,2]
[329630794,1718517063789,-500.0,0.00021917,2]
[329630795,1718517063815,-500.0,0.00021917,2]
[329630796,1718517063831,-500.0,0.00021917,2]
[329630797,1718517063850,-500.0,0.00021917,2]
[329630798,1718517063880,-500.0,0.00021917,2]
[329630799,1718517063909,-500.0,0.00021917,2]
[329630800,1718517063921,-500.0,0.00021917,2]
[329630801,1718517063937,-3767.8,0.00021917,2]
[329630802,1718517063950,-500.0,0.00021917,2]
[329630803,1718517063969,-500.0,0.00021917,2]
[329630804,1718517063992,-500.0,0.00021917,2]
[329630805,1718517064528,-500.0,0.00021917,2]
[329630806,1718517064573,-525.89285878,0.00021917,2]
[329630807,1718517064602,-500.0,0.00021917,2]
[329630808,1718517064623,-500.0,0.00021917,2]
[329630809,1718517064639,-500.0,0.00021917,2]
[329630810,1718517064670,-500.0,0.00021917,2]
[329630811,1718517064691,-500.0,0.00021917,2]
[329630812,1718517064706,-500.0,0.00021917,2]
[329630813,1718517064719,-500.0,0.00021917,2]
[329630814,1718517064736,-500.0,0.00021917,2]
[329630815,1718517064750,-500.0,0.00021917,2]
[329630816,1718517064762,-1039.0,0.00021917,2]
[329630817,1718517064775,-500.0,0.00021917,2]
[329630818,1718517064790,-500.0,0.00021917,2]
[329630819,1718517064803,-500.0,0.00021917,2]
[329630820,1718517064825,-500.0,0.00021917,2]
[329630821,1718517064849,-500.0,0.00021917,2]
[329630822,1718517064863,-500.0,0.00021917,2]
[329630823,1718517064898,-500.0,0.00021917,2]
[329630824,1718517064920,-500.0,0.00021917,2]
[329630825,1718517064936,-500.0,0.00021917,2]
[329630826,1718517064948,-500.0,0.00021917,2]
[329630827,1718517064963,-1156.85,0.00021917,2]
[329630828,1718517064989,-500.0,0.00021917,2]
[329630829,1718517065007,-500.0,0.00021917,2]
[329630830,1718517065018,-500.0,0.00021917,2]
[329630831,1718517065037,-500.0,0.00021917,2]
[329630832,1718517065049,-500.0,0.00021917,2]
[329630833,1718517065061,-500.0,0.00021917,2]
[329630834,1718517065073,-500.0,0.00021917,2]
[329630835,1718517065085,-526.69,0.00021917,2]
[329630836,1718517065112,-500.0,0.00021917,2]
[329630837,1718517065146,-500.0,0.00021917,2]
[329630838,1718517065161,-589.49,0.00021917,2]
[329630839,1718517065174,-500.0,0.00021917,2]
[329630840,1718517065214,-500.0,0.00021917,2]
[329630841,1718517065251,-505.64979668,0.00021917,2]
[329630842,1718517065266,-500.0,0.00021917,2]
[329630843,1718517065288,-500.0,0.00021917,2]
[329630844,1718517065301,-500.0,0.00021917,2]
[329630845,1718517065330,-500.0,0.00021917,2]
[329630846,1718517065368,-500.0,0.00021917,2]
[329630847,1718517065388,-519.26972277,0.00021917,2]
[329630848,1718517065400,-500.0,0.00021917,2]
[329630849,1718517065432,-500.0,0.00021917,2]
[329630850,1718517065444,-500.0,0.00021917,2]
[329630851,1718517065458,-2458.14,0.00021917,2]
[329630852,1718517065486,-506.61177133,0.00021917,2]
[329630853,1718517065499,-500.0,0.00021917,2]
[329630854,1718517065521,-500.0,0.00021917,2]
[329630855,1718517065542,-500.0,0.00021917,2]
[329630856,1718517065565,-500.97,0.00021917,2]
[329630857,1718517065577,-500.0,0.00021917,2]
[329630858,1718517065593,-509.6121996,0.00021917,2]
[329630859,1718517065605,-708.86,0.00021917,2]
[329630860,1718517065619,-921.43,0.00021917,2]
[329630861,1718517065631,-500.0,0.00021917,2]
[329630862,1718517065645,-500.0,0.00021917,2]
[329630863,1718517065657,-507.15025264,0.00021917,2]
[329630864,1718517065668,-500.0,0.00021917,2]
[329630865,1718517065680,-500.0,0.00021917,2]
[329630866,1718517065691,-500.0,0.00021917,2]
[329630867,1718517065706,-641.45,0.00021917,2]
[329630868,1718517065720,-500.0,0.00021917,2]
[329630869,1718517065731,-500.0,0.00021917,2]
[329630870,1718517065744,-500.0,0.00021917,2]
[329630871,1718517065757,-509.63948291,0.00021917,2]
[329630872,1718517065782,-1963.98,0.00021917,2]
[329630873,1718517065798,-500.0,0.00021917,2]
[329630874,1718517065812,-489.04013966,0.00021917,2]
[329630875,1718517065825,-500.0,0.00021917,2]
[329630876,1718517065838,-500.0,0.00021917,2]
[329630877,1718517065861,-500.0,0.00021917,2]
[329630878,1718517065875,-500.0,0.00021917,2]
[329630879,1718517065889,-525.14,0.00021917,2]
[329630880,1718517065911,-500.0,0.00021917,2]
[329630881,1718517065923,-500.0,0.00021917,2]
[329630882,1718517065944,-500.0,0.00021917,2]
[329630883,1718517065956,-500.0,0.00021917,2]
[329630884,1718517065976,-500.0,0.00021917,2]
[329630885,1718517066004,-359.82845557,0.00021917,2]
[329630886,1718517066016,-500.0,0.00021917,2]
[329630887,1718517066028,-202.22004765,0.00021917,2]
[329630888,1718517066039,-500.0,0.00021917,2]
[329630889,1718517066052,-500.0,0.00021917,2]
[329630890,1718517066065,-500.0,0.00021917,2]
[329630891,1718517066079,-500.0,0.00021917,2]
[329630892,1718517066101,-500.0,0.00021917,2]
[329630893,1718517066113,-500.0,0.00021917,2]
[329630894,1718517066126,-500.0,0.00021917,2]
[329630895,1718517066143,-500.0,0.00021917,2]
[329630896,1718517066165,-1672.49,0.00021917,2]
[329630897,1718517066192,-500.0,0.00021917,2]
[329630898,1718517066205,-500.0,0.00021917,2]
[329630899,1718517066222,-500.0,0.00021917,2]
[329630900,1718517066259,-854.38,0.00021917,2]
[329630901,1718517066271,-500.0,0.00021917,2]
[329630902,1718517066288,-664.32,0.00021917,2]
[329630903,1718517066301,-500.0,0.00021917,2]
[329630904,1718517066356,-500.0,0.00021917,2]
[329630905,1718517066383,-1385.73,0.00021917,2]
[329630906,1718517066396,-1299.79,0.00021917,2]
[329630907,1718517066413,-500.0,0.00021917,2]
[329630908,1718517066429,-1308.9,0.00021917,2]
[329630909,1718517066450,-500.0,0.00021917,2]
[329630910,1718517066461,-500.0,0.00021917,2]
[329630911,1718517066472,-500.0,0.00021917,2]
[329630912,1718517066501,-500.0,0.00021917,2]
[329630913,1718517066512,-500.0,0.00021917,2]
[329630914,1718517066544,-500.0,0.00021917,2]
[329630915,1718517066556,-500.0,0.00021917,2]
[329630916,1718517066578,-500.0,0.00021917,2]
[329630917,1718517066590,-500.0,0.00021917,2]
[329630918,1718517066601,-500.0,0.00021917,2]
[329630919,1718517066620,-1042.11,0.00021917,2]
[329630920,1718517066647,-500.0,0.00021917,2]
[329630921,1718517066660,-500.0,0.00021917,2]
[329630922,1718517066680,-500.0,0.00021917,2]
[329630923,1718517066700,-499.99959143,0.00021917,2]
[329630924,1718517066724,-702.42,0.00021917,2]
[329630925,1718517066743,-500.0,0.00021917,2]
[329630926,1718517066755,-805.01,0.00021917,2]
[329630927,1718517066767,-500.0,0.00021917,2]
[329630928,1718517066778,-500.0,0.00021917,2]
[329630929,1718517066791,-500.0,0.00021917,2]
[329630930,1718517066828,-500.0,0.00021917,2]
[329630931,1718517066840,-1793.87,0.00021917,2]
[329630932,1718517066851,-500.0,0.00021917,2]
[329630933,1718517066863,-1391.42,0.00021917,2]
[329630934,1718517066875,-995.9,0.00021917,2]
[329630935,1718517066893,-500.0,0.00021917,2]
[329630936,1718517066906,-500.0,0.00021917,2]
[329630937,1718517066938,-500.0,0.00021917,2]
[329630938,1718517066951,-500.0,0.00021917,2]
[329630939,1718517066974,-500.0,0.00021917,2]
[329630940,1718517066991,-500.0,0.00021917,2]
[329630941,1718517067002,-500.0,0.00021917,2]
[329630942,1718517067013,-1000.0,0.00021917,2]
[329630943,1718517067026,-500.0,0.00021917,2]
[329630944,1718517067040,-500.0,0.00021917,2]
[329630945,1718517067053,-500.0,0.00021917,2]
[329630946,1718517067066,-500.0,0.00021917,2]
[329630947,1718517067086,-500.0,0.00021917,2]
[329630948,1718517067098,-500.0,0.00021917,2]
[329630949,1718517067112,-500.0,0.00021917,2]
[329630950,1718517067140,-1326.38,0.00021917,2]
[329630951,1718517067156,-500.0,0.00021917,2]
[329630952,1718517067168,-500.0,0.00021917,2]
[329630953,1718517067197,-1257.13,0.00021917,2]
[329630954,1718517067213,-500.0,0.00021917,2]
[329630955,1718517067226,-500.0,0.00021917,2]
[329630956,1718517067239,-708.53,0.00021917,2]
[329630957,1718517067253,-500.0,0.00021917,2]
[329630958,1718517067264,-500.0,0.00021917,2]
[329630959,1718517067283,-2781.13,0.00021917,2]
[329630960,1718517067298,-500.0,0.00021917,2]
[329630961,1718517067312,-500.0,0.00021917,2]
[329630962,1718517067333,-500.0,0.00021917,2]
[329630963,1718517067345,-500.0,0.00021917,2]
[329630964,1718517067356,-1962.6,0.00021917,2]
[329630965,1718517067371,-1836.21,0.00021917,2]
[329630966,1718517067390,-500.0,0.00021917,2]
[329630967,1718517067402,-500.0,0.00021917,2]
[329630968,1718517067414,-500.0,0.00021917,2]
[329630969,1718517067425,-1324.55,0.00021917,2]
[329630970,1718517067438,-506.39519251,0.00021917,2]
[329630971,1718517067495,-500.0,0.00021917,2]
[329630972,1718517067507,-500.0,0.00021917,2]
[329630973,1718517067519,-500.0,0.00021917,2]
[329630974,1718517067531,-500.0,0.00021917,2]
[329630975,1718517067547,-500.0,0.00021917,2]
[329630976,1718517067567,-6632.11,0.00021917,2]
[329630977,1718517067581,-500.0,0.00021917,2]
[329630978,1718517067604,-500.0,0.00021917,2]
[329630979,1718517067621,-500.0,0.00021917,2]
[329630980,1718517067635,-500.0,0.00021917,2]
[329630981,1718517067676,-1097.71,0.00021917,2]
[329630982,1718517067694,-500.0,0.00021917,2]
[329630983,1718517067707,-575.95,0.00021917,2]
[329630984,1718517067722,-500.0,0.00021917,2]
[329630985,1718517067736,-500.0,0.00021917,2]
[329630986,1718517067754,-500.0,0.00021917,2]
[329630987,1718517067765,-500.0,0.00021917,2]
[329630988,1718517067800,-620.08457805,0.00021917,2]
[329630989,1718517067812,-500.0,0.00021917,2]
[329630990,1718517067823,-500.0,0.00021917,2]
[329630991,1718517067840,-500.0,0.00021917,2]
[329630992,1718517067868,-831.95,0.00021917,2]
[329630993,1718517067881,-500.0,0.00021917,2]
[329630994,1718517067895,-500.0,0.00021917,2]
[329630995,1718517067910,-500.0,0.00021917,2]
[329630996,1718517067923,-549.42,0.00021917,2]
[329630997,1718517067937,-937.19,0.00021917,2]
[329630998,1718517067953,-500.0,0.00021917,2]
[329630999,1718517067965,-743.96,0.00021917,2]
[329631000,1718517067984,-500.0,0.00021917,2]
[329631001,1718517068000,-861.99,0.00021917,2]
[329631002,1718517068018,-500.0,0.00021917,2]
[329631003,1718517068029,-500.0,0.00021917,2]
[329631004,1718517068041,-500.0,0.00021917,2]
[329631005,1718517068056,-500.0,0.00021917,2]
[329631006,1718517068077,-500.0,0.00021917,2]
[329631007,1718517068108,-500.0,0.00021917,2]
[329631008,1718517068130,-500.0,0.00021917,2]
[329631009,1718517068144,-500.0,0.00021917,2]
[329631010,1718517068158,-2065.03,0.00021917,2]
[329631011,1718517068181,-500.0,0.00021917,2]
[329631012,1718517068195,-500.0,0.00021917,2]
[329631013,1718517068236,-500.0,0.00021917,2]
[329631014,1718517068248,-500.0,0.00021917,2]
[329631015,1718517068259,-500.0,0.00021917,2]
[329631016,1718517068272,-500.0,0.00021917,2]
[329631017,1718517068283,-500.0,0.00021917,2]
[329631018,1718517068296,-804.62,0.00021917,2]
[329631019,1718517068307,-500.0,0.00021917,2]
[329631020,1718517068320,-500.0,0.00021917,2]
[329631021,1718517068330,-1063.76,0.00021917,2]
[329631022,1718517068341,-3268.32,0.00021917,2]
[329631023,1718517068351,-500.0,0.00021917,2]
[329631024,1718517068371,-500.0,0.00021917,2]
[329631025,1718517068389,-500.0,0.00021917,2]
[329631026,1718517068400,-500.0,0.00021917,2]
[329631027,1718517068414,-500.0,0.00021917,2]
[329631028,1718517068454,-940.12,0.00021917,2]
[329631029,1718517068497,-500.0,0.00021917,2]
[329631030,1718517068533,-500.0,0.00021917,2]
[329631031,1718517068546,-1046.05,0.00021917,2]
[329631032,1718517068589,-500.0,0.00021917,2]
[329631033,1718517068617,-500.0,0.00021917,2]
[329631034,1718517068633,-500.0,0.00021917,2]
[329631035,1718517068652,-663.22,0.00021917,2]
[329631036,1718517068664,-500.0,0.00021917,2]
[329631037,1718517068676,-500.0,0.00021917,2]
[329631038,1718517068687,-1321.59,0.00021917,2]
[329631039,1718517068719,-500.0,0.00021917,2]
[329631040,1718517068730,-500.0,0.00021917,2]
[329631041,1718517068744,-500.0,0.00021917,2]
[329631042,1718517068756,-500.0,0.00021917,2]
[329631043,1718517068767,-500.0,0.00021917,2]
[329631044,1718517068800,-500.0,0.00021917,2]
[329631045,1718517068815,-1054.68,0.00021917,2]
[329631046,1718517068826,-500.0,0.00021917,2]
[329631047,1718517068846,-546.02866044,0.00021917,2]
[329631048,1718517068938,-500.0,0.00021917,2]
[329631049,1718517068950,-920.58,0.00021917,2]
[329631050,1718517068966,-500.0,0.00021917,2]
[329631051,1718517068993,-500.0,0.00021917,2]
[329631052,1718517069016,-500.0,0.00021917,2]
[329631053,1718517069048,-500.0,0.00021917,2]
[329631054,1718517069076,-500.0,0.00021917,2]
[329631055,1718517069104,-500.0,0.00021917,2]
[329631056,1718517069116,-500.0,0.00021917,2]
[329631057,1718517069130,-500.0,0.00021917,2]
[329631058,1718517069143,-528.85,0.00021917,2]
[329631059,1718517069158,-565.75,0.00021917,2]
[329631060,1718517069182,-1665.79,0.00021917,2]
[329631061,1718517069194,-500.0,0.00021917,2]
[329631062,1718517069213,-623.62171097,0.00021917,2]
[329631063,1718517069237,-500.0,0.00021917,2]
[329631064,1718517069251,-500.0,0.00021917,2]
[329631065,1718517069266,-500.0,0.00021917,2]
[329631066,1718517069283,-658.81,0.00021917,2]
[329631067,1718517069313,-500.0,0.00021917,2]
[329631068,1718517069339,-1310.62,0.00021917,2]
[329631069,1718517069352,-500.0,0.00021917,2]
[329631070,1718517069365,-230.09844143,0.00021917,2]
[329631071,1718517069378,-500.0,0.00021917,2]
[329631072,1718517069392,-500.0,0.00021917,2]
[329631073,1718517069403,-500.0,0.00021917,2]
[329631074,1718517069415,-1217.12,0.00021917,2]
[329631075,1718517069426,-507.64663114,0.00021917,2]
[329631076,1718517069449,-782.31,0.00021917,2]
[329631077,1718517069479,-500.0,0.00021917,2]
[329631078,1718517069496,-1318.48,0.00021917,2]
[329631079,1718517069512,-505.33558978,0.00021917,2]
[329631080,1718517069533,-500.0,0.00021917,2]
[329631081,1718517069550,-510.59,0.00021917,2]
[329631082,1718517069576,-500.0,0.00021917,2]
[329631083,1718517069595,-2961.49,0.00021917,2]
[329631084,1718517069611,-500.0,0.00021917,2]
[329631085,1718517069630,-874.75,0.00021917,2]
[329631086,1718517069653,-500.0,0.00021917,2]
[329631087,1718517069676,-500.0,0.00021917,2]
[329631088,1718517069701,-608.01,0.00021917,2]
[329631089,1718517069724,-500.0,0.00021917,2]
[329631090,1718517069748,-3407.16,0.00021917,2]
[329631091,1718517069766,-500.0,0.00021917,2]
[329631092,1718517069796,-511.44,0.00021917,2]
[329631093,1718517069832,-500.0,0.00021917,2]
[329631094,1718517069852,-500.0,0.00021917,2]
[329631095,1718517069873,-500.0,0.00021917,2]
[329631096,1718517069891,-1693.97,0.00021917,2]
[329631097,1718517069902,-500.0,0.00021917,2]
[329631098,1718517069916,-2854.08,0.00021917,2]
[329631099,1718517069929,-500.0,0.00021917,2]
[329631100,1718517069946,-569.89,0.00021917,2]
[329631101,1718517069997,-2870.7,0.00021917,2]
[329631102,1718517070028,-665.94,0.00021917,2]
[329631103,1718517070040,-500.0,0.00021917,2]
[329631104,1718517070058,-1012.94,0.00021917,2]
[329631105,1718517070087,-1491.26,0.00021917,2]
[329631106,1718517070099,-500.0,0.00021917,2]
[329631107,1718517070110,-947.88,0.00021917,2]
[329631108,1718517070135,-500.0,0.00021917,2]
[329631109,1718517070147,-500.0,0.00021917,2]
[329631110,1718517070163,-500.0,0.00021917,2]
[329631111,1718517070207,-500.0,0.00021917,2]
[329631112,1718517070250,-500.0,0.00021917,2]
[329631113,1718517070273,-608.8,0.00021917,2]
[329631114,1718517070285,-996.71,0.00021917,2]
[329631115,1718517070297,-656.46,0.00021917,2]
[329631116,1718517070313,-1236.84,0.00021917,2]
[329631117,1718517070348,-670.56,0.00021917,2]
[329631118,1718517070379,-500.0,0.00021917,2]
[329631119,1718517070403,-500.0,0.00021917,2]
[329631120,1718517070429,-500.0,0.00021917,2]
[329631121,1718517070449,-927.66,0.00021917,2]
[329631122,1718517070489,-652.4,0.00021917,2]
[329631123,1718517070535,-500.0,0.00021917,2]
[329631124,1718517070556,-155.27181277,0.00021917,2]
[329631125,1718517070585,-500.0,0.00021917,2]
[329631126,1718517070597,-529.96,0.00021917,2]
[329631127,1718517070630,-500.0,0.00021917,2]
[329631128,1718517070644,-624.49,0.00021917,2]
[329631129,1718517070658,-500.0,0.00021917,2]
[329631130,1718517070684,-514.84,0.00021917,2]
[329631131,1718517070701,-1136.58,0.00021917,2]
[329631132,1718517070714,-694.28,0.00021917,2]
[329631133,1718517070728,-2264.88,0.00021917,2]
[329631134,1718517070740,-500.0,0.00021917,2]
[329631135,1718517070754,-507.48,0.00021917,2]
[329631136,1718517070768,-906.02,0.00021917,2]
[329631137,1718517070801,-618.6,0.00021917,2]
[329631138,1718517070816,-649.28,0.00021917,2]
[329631139,1718517070830,-500.0,0.00021917,2]
[329631140,1718517070848,-500.0,0.00021917,2]
[329631141,1718517070865,-500.0,0.00021917,2]
[329631142,1718517070879,-500.0,0.00021917,2]
[329631143,1718517070910,-8827.74,0.00021917,2]
[329631144,1718517070927,-500.0,0.00021917,2]
[329631145,1718517070941,-500.0,0.00021917,2]
[329631146,1718517070953,-500.0,0.00021917,2]
[329631147,1718517070972,-500.0,0.00021917,2]
[329631148,1718517070990,-517.75464508,0.00021917,2]
[329631149,1718517071027,-500.0,0.00021917,2]
[329631150,1718517071087,-500.0,0.00021917,2]
[329631151,1718517071108,-500.0,0.00021917,2]
[329631152,1718517071141,-500.0,0.00021917,2]
[329631153,1718517071194,-500.0,0.00021917,2]
[329631154,1718517071214,-500.0,0.00021917,2]
[329631155,1718517071233,-500.0,0.00021917,2]
[329631156,1718517071247,-163.7,0.00021918,2]
[329631157,1718517071273,-250.0,0.00021918,2]
[329631158,1718517071286,-708.04,0.00021918,2]
[329631159,1718517071309,-300.0,0.00021918,2]
[329631160,1718517071325,-300.0,0.00021918,2]
[329631161,1718517071343,-300.0,0.00021918,2]
[329631162,1718517071360,-300.0,0.00021918,2]
[329631163,1718517071381,-300.0,0.00021918,2]
[329631164,1718517071394,-300.0,0.00021918,2]
[329631165,1718517071416,-171.679045,0.00021918,2]
[329631166,1718517071441,-324.0,0.0002192,2]
[329631167,1718517071453,-177.26,0.00021955,2]
[329631168,1718517071497,-500.0,0.00021999,3]
[329631169,1718517071516,-506.95008351,0.00021999,3]
[329631170,1718517071552,-791.61101714,0.00022,2]
[329631171,1718517071570,-5645.4,0.00022,2]
[329631172,1718517071585,-2612.3526398,0.00022,2]
[329631173,1718517071603,-2612.3526398,0.00022,2]
[329631174,1718517071678,-2612.3526398,0.00022,2]
[329631175,1718517071699,-2612.3526398,0.00022,2]
[329631176,1718517071710,-2612.3526398,0.00022,2]
[329631177,1718517071728,-2612.3526398,0.00022,2]
[329631178,1718517071739,-2612.3526398,0.00022,2]
[329631179,1718517071752,-2612.3526398,0.00022,2]
[329631180,1718517071764,-2612.3526398,0.00022,2]
[329631181,1718517071781,-2612.3526398,0.00022,2]
[329631182,1718517071805,-564.51,0.0002209,3]
[329631183,1718517071822,-57041.5656,0.00022091,2]
[329631184,1718517071851,-194.90256893,0.00022091,2]
[329631185,1718517071865,-11438.7454203,0.00022091,2]
[329631186,1718517071878,-151.0,0.00022094,2]
[329631187,1718517071893,-3000.0,0.0002211,2]
[329631188,1718517071916,-564.51,0.0002219,3]
[329631189,1718517071926,-175.51042639,0.0002219,3]
[329631190,1718517071948,-300.0,0.0002219,2]
[329631191,1718517071959,-300.0,0.0002219,2]
[329631192,1718517071970,-300.0,0.0002219,2]
[329631193,1718517071985,-406.52059693,0.0002219,2]
[329631194,1718517072000,-148137.27622807,0.00022191,13]
[329631195,1718517072015,-500.0,0.00022191,3]
[329631196,1718517072031,-500.0,0.00022191,3]
[329631197,1718517072059,-500.0,0.00022191,3]
[329631198,1718517072071,-220.78782286,0.00022191,3]
[329631199,1718517072084,-157.10588519,0.00022191,3]
[329631200,1718517072096,-500.0,0.00022191,3]
[329631201,1718517072110,-500.0,0.00022191,3]
[329631202,1718517072131,-500.0,0.00022191,3]
[329631203,1718517072146,-495.97531171,0.00022191,3]
[329631204,1718517072177,-500.0,0.00022191,3]
[329631205,1718517072195,-500.0,0.00022191,3]
[329631206,1718517072208,-500.0,0.00022191,3]
[329631207,1718517072220,-500.0,0.00022191,3]
[329631208,1718517072244,-500.0,0.00022191,3]
[329631209,1718517072257,-500.0,0.00022191,3]
[329631210,1718517072268,-500.0,0.00022191,3]
[329631211,1718517072281,-500.0,0.00022191,3]
[329631212,1718517072301,-500.0,0.00022191,3]
[329631213,1718517072313,-500.0,0.00022191,3]
[329631214,1718517072326,-500.0,0.00022191,3]
[329631215,1718517072340,-500.0,0.00022191,3]
[329631216,1718517072359,-500.0,0.00022191,3]
[329631217,1718517072370,-500.0,0.00022191,3]
[329631218,1718517072381,-500.0,0.00022191,3]
[329631219,1718517072392,-500.0,0.00022191,3]
[329631220,1718517072404,-500.0,0.00022191,3]
[329631221,1718517072427,-538.30612578,0.00022191,3]
[329631222,1718517072439,-500.0,0.00022191,3]
[329631223,1718517072452,-500.0,0.00022191,3]
[329631224,1718517072482,-500.0,0.00022191,3]
[329631225,1718517072504,-500.0,0.00022191,3]
[329631226,1718517072520,-500.0,0.00022191,3]
[329631227,1718517072556,-500.0,0.00022191,3]
[329631228,1718517072571,-500.0,0.00022191,3]
[329631229,1718517072586,-500.0,0.00022191,3]
[329631230,1718517072615,-500.0,0.00022191,3]
[329631231,1718517072657,-500.0,0.00022191,3]
[329631232,1718517072689,-500.0,0.00022191,3]
[329631233,1718517072719,-500.0,0.00022191,3]
[329631234,1718517072740,-500.0,0.00022191,3]
[329631235,1718517072752,-500.0,0.00022191,3]
[329631236,1718517072765,-500.0,0.00022191,3]
[329631237,1718517072801,-500.0,0.00022191,3]
[329631238,1718517072829,-500.0,0.00022191,3]
[329631239,1718517072845,-500.0,0.00022191,3]
[329631240,1718517072858,-517.76584345,0.00022191,3]
[329631241,1718517072872,-500.0,0.00022191,3]
[329631242,1718517072888,-500.0,0.00022191,3]
[329631243,1718517072900,-500.0,0.00022191,3]
[329631244,1718517072918,-500.0,0.00022191,3]
[329631245,1718517072931,-551.42,0.00022191,3]
[329631246,1718517072945,-500.0,0.00022191,3]
[329631247,1718517072958,-500.0,0.00022191,3]
[329631248,1718517072982,-500.0,0.00022191,3]
[329631249,1718517072997,-500.0,0.00022191,3]
[329631250,1718517073032,-500.0,0.00022191,3]